[Event "SS Manhem Chess Week 2019 GM and IM tournaments"]
[Site "Molnlycke kulturhus, Biblioteksgatan 2, Molnlycke, Sweden"]
[Date "2019.08.12"]
[Round "4.4"]
[White "Haubro, Martin"]
[Black "Wiedenkeller, Michael"]
[Result "0-1"]
[TimeControl "90 minutes for 40 moves + 30 minutes for the rest of the game + 30 seconds per move from move one."]
[WhiteTitle "IM"]
[BlackTitle "IM"]
[WhiteFideId "1414291"]
[BlackFideId "1700146"]
[WhiteElo "2374"]
[BlackElo "2456"]

1. e4 {[%clk 01:30:57]} {[%emt 00:00:02]} e5 {[%clk 01:29:46]} {[%emt
00:01:14]} 2. Nf3 {[%clk 01:31:23]} {[%emt 00:00:05]} Nc6 {[%clk 01:29:59]}
{[%emt 00:00:17]} 3. Bb5 {[%clk 01:31:48]} {[%emt 00:00:06]} Nf6 {[%clk
01:29:56]} {[%emt 00:00:32]} 4. d3 {[%clk 01:32:12]} {[%emt 00:00:05]} Bc5
{[%clk 01:30:05]} {[%emt 00:00:21]} 5. c3 {[%clk 01:32:37]} {[%emt 00:00:06]}
d5 {[%clk 01:30:05]} {[%emt 00:00:30]} 6. exd5 {[%clk 01:29:45]} {[%emt
00:03:23]} Qxd5 {[%clk 01:30:21]} {[%emt 00:00:14]} 7. Bc4 {[%clk 01:30:10]}
{[%emt 00:00:05]} Qd6 {[%clk 01:30:22]} {[%emt 00:00:30]} 8. b4 {[%clk
01:26:27]} {[%emt 00:04:13]} Bb6 {[%clk 01:30:37]} {[%emt 00:00:15]} 9. a4
{[%clk 01:26:53]} {[%emt 00:00:05]} O-O {[%clk 01:29:14]} {[%emt 00:01:53]} 10.
O-O {[%clk 01:27:17]} {[%emt 00:00:06]} e4 {[%clk 01:27:56]} {[%emt 00:01:48]}
11. dxe4 {[%clk 01:27:12]} {[%emt 00:00:35]} Qxd1 {[%clk 01:18:34]} {[%emt
00:09:52]} 12. Rxd1 {[%clk 01:25:23]} {[%emt 00:02:18]} Nxe4 {[%clk 01:18:52]}
{[%emt 00:00:13]} 13. Rf1 {[%clk 01:25:51]} {[%emt 00:00:02]} Nd6 {[%clk
01:14:59]} {[%emt 00:04:23]} 14. Bd3 {[%clk 01:16:21]} {[%emt 00:10:00]} a5
{[%clk 01:12:30]} {[%emt 00:02:59]} 15. b5 {[%clk 01:15:06]} {[%emt 00:01:44]}
Ne7 {[%clk 01:00:39]} {[%emt 00:12:22]} 16. Ba3 {[%clk 01:14:08]} {[%emt
00:01:28]} Bg4 {[%clk 00:51:47]} {[%emt 00:09:22]} 17. Nbd2 {[%clk 00:43:55]}
{[%emt 00:51:50]} Nd5 {[%clk 00:50:00]} {[%emt 00:02:16]} 18. Ne5 {[%clk
00:43:32]} {[%emt 00:00:52]} Be6 {[%clk 00:47:16]} {[%emt 00:03:14]} 19. Rfc1
{[%clk 00:43:35]} {[%emt 00:00:28]} Nf4 {[%clk 00:41:38]} {[%emt 00:06:08]} 20.
Bf1 {[%clk 00:44:00]} {[%emt 00:00:05]} Rfe8 {[%clk 00:40:39]} {[%emt
00:01:29]} 21. Nef3 {[%clk 00:41:20]} {[%emt 00:03:10]} Nf5 {[%clk 00:34:54]}
{[%emt 00:06:15]} 22. g3 {[%clk 00:39:20]} {[%emt 00:02:30]} Ng6 {[%clk
00:34:34]} {[%emt 00:00:50]} 23. Nc4 {[%clk 00:26:48]} {[%emt 00:13:02]} Bxc4
{[%clk 00:27:40]} {[%emt 00:07:24]} 24. Bxc4 {[%clk 00:27:13]} {[%emt
00:00:05]} Nd6 {[%clk 00:28:01]} {[%emt 00:00:09]} 25. Bd5 {[%clk 00:22:50]}
{[%emt 00:04:53]} Ne7 {[%clk 00:21:59]} {[%emt 00:06:33]} 26. Bb3 {[%clk
00:21:19]} {[%emt 00:02:00]} Nef5 {[%clk 00:19:45]} {[%emt 00:02:44]} 27. Rc2
{[%clk 00:13:27]} {[%emt 00:08:22]} Ne4 {[%clk 00:18:01]} {[%emt 00:02:14]} 28.
Bd5 {[%clk 00:12:26]} {[%emt 00:01:31]} Nfd6 {[%clk 00:17:57]} {[%emt
00:00:33]} 29. c4 {[%clk 00:10:04]} {[%emt 00:02:52]} Bc5 {[%clk 00:15:55]}
{[%emt 00:02:32]} 30. Bb2 {[%clk 00:10:02]} {[%emt 00:00:32]} Rac8 {[%clk
00:15:03]} {[%emt 00:01:22]} 31. Ne5 {[%clk 00:09:24]} {[%emt 00:01:08]} Bb4
{[%clk 00:08:39]} {[%emt 00:06:54]} 32. h4 {[%clk 00:07:04]} {[%emt 00:02:49]}
Re7 {[%clk 00:07:24]} {[%emt 00:01:45]} 33. h5 {[%clk 00:07:17]} {[%emt
00:00:17]} Rce8 {[%clk 00:06:28]} {[%emt 00:01:26]} 34. Nd3 {[%clk 00:06:33]}
{[%emt 00:01:13]} Nc5 {[%clk 00:06:42]} {[%emt 00:00:17]} 35. Nxb4 {[%clk
00:03:09]} {[%emt 00:03:54]} axb4 {[%clk 00:07:10]} {[%emt 00:00:02]} 36. Bd4
{[%clk 00:02:47]} {[%emt 00:00:52]} Nb3 {[%clk 00:06:55]} {[%emt 00:00:44]} 37.
Rd1 {[%clk 00:00:47]} {[%emt 00:02:31]} Re1+ {[%clk 00:06:59]} {[%emt
00:00:27]} 0-1

[Event "SS Manhem Chess Week 2019 GM and IM tournaments"]
[Site "Molnlycke kulturhus, Biblioteksgatan 2, Molnlycke, Sweden"]
[Date "2019.08.12"]
[Round "4.5"]
[White "Hector, Jonny"]
[Black "Lindgren, Philip"]
[Result "1-0"]
[TimeControl "90 minutes for 40 moves + 30 minutes for the rest of the game + 30 seconds per move from move one."]
[WhiteTitle "GM"]
[BlackTitle "IM"]
[WhiteFideId "1700090"]
[BlackFideId "1713230"]
[WhiteElo "2493"]
[BlackElo "2362"]

1. e4 {[%clk 01:30:51]} {[%emt 00:00:07]} e5 {[%clk 01:30:36]} {[%emt
00:00:25]} 2. Nf3 {[%clk 01:31:07]} {[%emt 00:00:14]} Nf6 {[%clk 01:30:34]}
{[%emt 00:00:33]} 3. Nxe5 {[%clk 01:31:10]} {[%emt 00:00:27]} d6 {[%clk
01:30:32]} {[%emt 00:00:32]} 4. Nf3 {[%clk 01:31:21]} {[%emt 00:00:18]} Nxe4
{[%clk 01:30:20]} {[%emt 00:00:43]} 5. d4 {[%clk 01:31:23]} {[%emt 00:00:27]}
d5 {[%clk 01:29:35]} {[%emt 00:01:15]} 6. Bd3 {[%clk 01:31:07]} {[%emt
00:00:45]} Nc6 {[%clk 01:27:49]} {[%emt 00:02:17]} 7. O-O {[%clk 01:30:24]}
{[%emt 00:01:13]} Be7 {[%clk 01:26:08]} {[%emt 00:02:12]} 8. c4 {[%clk
01:28:48]} {[%emt 00:02:05]} Nb4 {[%clk 01:24:14]} {[%emt 00:02:25]} 9. cxd5
{[%clk 01:28:17]} {[%emt 00:01:00]} Nxd3 {[%clk 01:08:41]} {[%emt 00:16:04]} 10.
Qxd3 {[%clk 01:28:36]} {[%emt 00:00:10]} Nf6 {[%clk 01:07:41]} {[%emt
00:01:31]} 11. Nc3 {[%clk 01:21:55]} {[%emt 00:07:11]} Nxd5 {[%clk 00:58:04]}
{[%emt 00:10:06]} 12. Nxd5 {[%clk 01:20:02]} {[%emt 00:02:23]} Qxd5 {[%clk
00:58:00]} {[%emt 00:00:36]} 13. Re1 {[%clk 01:19:35]} {[%emt 00:00:56]} Be6
{[%clk 00:51:42]} {[%emt 00:06:49]} 14. Re5 {[%clk 01:13:31]} {[%emt 00:06:33]}
Qd7 {[%clk 00:48:25]} {[%emt 00:03:47]} 15. d5 {[%clk 00:58:24]} {[%emt
00:37:01]} c6 {[%clk 00:45:13]} {[%emt 00:03:42]} 16. Bg5 {[%clk 00:55:45]}
{[%emt 00:03:08]} cxd5 {[%clk 00:31:43]} {[%emt 00:14:01]} 17. Rae1 {[%clk
00:52:32]} {[%emt 00:03:42]} O-O-O {[%clk 00:23:32]} {[%emt 00:08:42]} 18. Bxe7
{[%clk 00:47:01]} {[%emt 00:06:00]} Qxe7 {[%clk 00:23:55]} {[%emt 00:00:07]} 19.
Nd4 {[%clk 00:47:10]} {[%emt 00:00:20]} Rhe8 {[%clk 00:18:50]} {[%emt
00:05:35]} 20. Nf5 {[%clk 00:42:05]} {[%emt 00:05:35]} Qf8 {[%clk 00:16:21]}
{[%emt 00:02:59]} 21. Qg3 {[%clk 00:41:54]} {[%emt 00:00:41]} Qc5 {[%clk
00:04:47]} {[%emt 00:12:04]} 22. Nxg7 {[%clk 00:41:20]} {[%emt 00:01:04]} Rg8
{[%clk 00:04:18]} {[%emt 00:00:59]} 23. Rg5 {[%clk 00:36:11]} {[%emt 00:05:38]}
Rgf8 {[%clk 00:01:39]} {[%emt 00:03:10]} 24. h4 {[%clk 00:29:12]} {[%emt
00:07:29]} Qd6 {[%clk 00:01:25]} {[%emt 00:00:44]} 25. Rge5 {[%clk 00:27:59]}
{[%emt 00:01:42]} Bd7 {[%clk 00:00:55]} {[%emt 00:01:01]} 26. Qd3 {[%clk
00:24:19]} {[%emt 00:04:10]} d4 {[%clk 00:00:32]} {[%emt 00:00:53]} 27. Qc4+
{[%clk 00:21:47]} {[%emt 00:03:01]} Kb8 {[%clk 00:00:36]} {[%emt 00:00:27]} 28.
Rd5 {[%clk 00:21:48]} {[%emt 00:00:29]} Qc6 {[%clk 00:00:31]} {[%emt 00:00:35]}
29. Qxd4 {[%clk 00:21:42]} {[%emt 00:00:35]} Rg8 {[%clk 00:00:32]} {[%emt
00:00:30]} 30. Rd1 {[%clk 00:18:59]} {[%emt 00:03:13]} Kc8 {[%clk 00:00:31]}
{[%emt 00:00:32]} 31. Rc5 {[%clk 00:18:20]} {[%emt 00:01:08]} 1-0

[Event "SS Manhem Chess Week 2019 GM and IM tournaments"]
[Site "Molnlycke kulturhus, Biblioteksgatan 2, Molnlycke, Sweden"]
[Date "2019.08.12"]
[Round "4.6"]
[White "Ornstein, Axel"]
[Black "Borsuk, Konstantin"]
[Result "1/2-1/2"]
[TimeControl "90 minutes for 40 moves + 30 minutes for the rest of the game + 30 seconds per move from move one."]
[WhiteTitle "IM"]
[BlackTitle "FM"]
[WhiteFideId "1700111"]
[BlackFideId "14113406"]
[WhiteElo "2311"]
[BlackElo "2372"]

1. Nf3 {[%clk 01:29:29]} {[%emt 00:01:30]} Nf6 {[%clk 01:30:32]} {[%emt
00:00:28]} 2. g3 {[%clk 01:29:39]} {[%emt 00:00:20]} b6 {[%clk 01:30:37]}
{[%emt 00:00:26]} 3. Bg2 {[%clk 01:29:58]} {[%emt 00:00:11]} Bb7 {[%clk
01:30:59]} {[%emt 00:00:08]} 4. c4 {[%clk 01:30:22]} {[%emt 00:00:05]} g6
{[%clk 01:29:53]} {[%emt 00:01:35]} 5. b3 {[%clk 01:29:14]} {[%emt 00:01:39]}
Bg7 {[%clk 01:29:58]} {[%emt 00:00:25]} 6. Bb2 {[%clk 01:29:42]} {[%emt
00:00:02]} O-O {[%clk 01:25:10]} {[%emt 00:05:18]} 7. O-O {[%clk 01:29:28]}
{[%emt 00:00:44]} e6 {[%clk 01:20:30]} {[%emt 00:05:11]} 8. d4 {[%clk
01:23:24]} {[%emt 00:06:34]} d5 {[%clk 01:13:19]} {[%emt 00:07:40]} 9. Nbd2
{[%clk 01:09:57]} {[%emt 00:13:58]} Nbd7 {[%clk 01:02:22]} {[%emt 00:11:27]} 10.
Rc1 {[%clk 01:08:48]} {[%emt 00:01:38]} Re8 {[%clk 00:50:52]} {[%emt 00:12:00]}
11. Qc2 {[%clk 01:06:57]} {[%emt 00:02:21]} Rc8 {[%clk 00:48:36]} {[%emt
00:02:46]} 12. Rfd1 {[%clk 01:06:18]} {[%emt 00:01:10]} Qe7 {[%clk 00:47:07]}
{[%emt 00:01:59]} 13. c5 {[%clk 00:54:35]} {[%emt 00:31:33]} c6 {[%clk
00:36:04]} {[%emt 00:11:32]} 14. b4 {[%clk 00:53:27]} {[%emt 00:01:38]} a5
{[%clk 00:31:24]} {[%emt 00:05:10]} 15. a3 {[%clk 00:53:02]} {[%emt 00:00:54]}
axb4 {[%clk 00:31:14]} {[%emt 00:00:41]} 16. axb4 {[%clk 00:53:30]} {[%emt
00:00:02]} bxc5 {[%clk 00:29:10]} {[%emt 00:02:35]} 17. bxc5 {[%clk 00:53:42]}
{[%emt 00:00:18]} Ba6 {[%clk 00:27:33]} {[%emt 00:02:07]} 18. e3 {[%clk
00:47:40]} {[%emt 00:06:32]} Bb5 {[%clk 00:25:40]} {[%emt 00:02:23]} 19. Ra1
{[%clk 00:40:37]} {[%emt 00:07:33]} Ra8 {[%clk 00:23:38]} {[%emt 00:02:32]} 20.
h3 {[%clk 00:35:43]} {[%emt 00:05:24]} Reb8 {[%clk 00:22:27]} {[%emt 00:01:41]}
21. Rxa8 {[%clk 00:35:37]} {[%emt 00:00:36]} Rxa8 {[%clk 00:22:50]} {[%emt
00:00:07]} 22. Ra1 {[%clk 00:36:04]} {[%emt 00:00:03]} Qf8 {[%clk 00:21:43]}
{[%emt 00:01:37]} 23. Qd1 {[%clk 00:35:38]} {[%emt 00:00:56]} h6 {[%clk
00:19:42]} {[%emt 00:02:31]} 24. Rxa8 {[%clk 00:32:41]} {[%emt 00:03:28]} Qxa8
{[%clk 00:20:09]} {[%emt 00:00:02]} 25. Qa1 {[%clk 00:33:10]} Qxa1+ {[%emt
00:09:26]} 26. Bxa1 Ne4 {[%emt 00:00:02]} 27. Nxe4 dxe4 28. Ne5 Bxe5 29. dxe5
Bd3 30. Bd4 f6 {[%emt 00:00:01]} 31. f4 {[%emt 00:00:02]} 1/2-1/2

[Event "SS Manhem Chess Week 2019 GM and IM tournaments"]
[Site "Molnlycke kulturhus, Biblioteksgatan 2, Molnlycke, Sweden"]
[Date "2019.08.12"]
[Round "4.7"]
[White "Kucuksari, Kaan"]
[Black "Fries-Nielsen, Jens Ove"]
[Result "0-1"]
[TimeControl "90 minutes for 40 moves + 30 minutes for the rest of the game + 30 seconds per move from move one."]
[WhiteTitle "FM"]
[BlackTitle "IM"]
[WhiteFideId "6380166"]
[BlackFideId "1400142"]
[WhiteElo "2286"]
[BlackElo "2351"]

1. d4 {[%clk 01:29:20]} {[%emt 00:01:39]} d5 {[%clk 01:29:34]} {[%emt
00:01:26]} 2. Nf3 {[%clk 01:29:44]} {[%emt 00:00:06]} e6 {[%clk 01:29:24]}
{[%emt 00:00:41]} 3. g3 {[%clk 01:29:29]} {[%emt 00:00:44]} Nf6 {[%clk
01:29:37]} {[%emt 00:00:16]} 4. Bg2 {[%clk 01:29:55]} {[%emt 00:00:04]} Be7
{[%clk 01:29:50]} {[%emt 00:00:19]} 5. c4 {[%clk 01:30:15]} {[%emt 00:00:09]}
O-O {[%clk 01:30:13]} {[%emt 00:00:07]} 6. O-O {[%clk 01:30:39]} {[%emt
00:00:06]} a5 {[%clk 01:30:26]} {[%emt 00:00:18]} 7. Nc3 {[%clk 01:30:13]}
{[%emt 00:00:56]} dxc4 {[%clk 01:28:32]} {[%emt 00:02:23]} 8. Ne5 {[%clk
01:30:10]} {[%emt 00:00:33]} Nc6 {[%clk 01:26:43]} {[%emt 00:02:19]} 9. Bxc6
{[%clk 01:20:59]} {[%emt 00:09:41]} bxc6 {[%clk 01:26:53]} {[%emt 00:00:20]} 10.
Nxc6 {[%clk 01:21:07]} {[%emt 00:00:22]} Qe8 {[%clk 01:26:40]} {[%emt
00:00:42]} 11. Nxe7+ {[%clk 01:17:08]} {[%emt 00:04:29]} Qxe7 {[%clk 01:27:08]}
{[%emt 00:00:02]} 12. Qa4 {[%clk 01:17:38]} Qb4 {[%clk 01:21:38]} {[%emt
00:06:01]} 13. Bg5 {[%clk 01:14:17]} {[%emt 00:03:50]} Nd5 {[%clk 01:01:57]}
{[%emt 00:20:12]} 14. Qc2 {[%clk 01:13:46]} {[%emt 00:01:00]} Qb6 {[%clk
00:57:00]} {[%emt 00:05:29]} 15. Rad1 {[%clk 01:10:16]} {[%emt 00:03:59]} Bb7
{[%clk 00:54:45]} {[%emt 00:02:45]} 16. a3 {[%clk 01:05:13]} {[%emt 00:05:33]}
f6 {[%clk 00:51:14]} {[%emt 00:04:00]} 17. Bc1 {[%clk 01:04:34]} {[%emt
00:01:09]} Qb3 {[%clk 00:44:42]} {[%emt 00:26:54]} 18. Qxb3 {[%clk 01:01:43]}
{[%emt 00:03:21]} cxb3 {[%clk 00:45:04]} {[%emt 00:00:07]} 19. Na4 {[%clk
01:01:14]} {[%emt 00:00:59]} Ba6 {[%clk 00:38:55]} {[%emt 00:06:40]} 20. Rfe1
{[%clk 01:01:16]} {[%emt 00:00:28]} Nb6 {[%clk 00:38:21]} {[%emt 00:01:04]} 21.
Nc5 {[%clk 00:58:23]} {[%emt 00:03:23]} Bc4 {[%clk 00:38:45]} {[%emt 00:00:06]}
22. Bf4 {[%clk 00:52:31]} {[%emt 00:06:21]} Rac8 {[%clk 00:37:12]} {[%emt
00:02:03]} 23. Rc1 {[%clk 00:48:02]} {[%emt 00:04:59]} a4 {[%clk 00:35:26]}
{[%emt 00:02:16]} 24. Nxa4 {[%clk 00:41:32]} {[%emt 00:06:59]} g5 {[%clk
00:29:52]} {[%emt 00:06:04]} 25. Bd6 {[%clk 00:29:41]} {[%emt 00:12:21]} Rfe8
{[%clk 00:29:24]} {[%emt 00:00:58]} 26. Bc5 {[%clk 00:28:39]} {[%emt 00:01:32]}
Nxa4 {[%clk 00:26:00]} {[%emt 00:03:55]} 27. Rxc4 {[%clk 00:29:04]} {[%emt
00:00:04]} Ra8 {[%clk 00:26:24]} {[%emt 00:00:07]} 28. Bb4 {[%clk 00:19:43]}
{[%emt 00:09:51]} Nxb2 {[%clk 00:23:10]} {[%emt 00:03:45]} 29. Rc3 {[%clk
00:18:58]} {[%emt 00:01:14]} Na4 {[%clk 00:22:55]} {[%emt 00:00:44]} 30. Rxb3
{[%clk 00:19:27]} {[%emt 00:00:02]} Red8 {[%clk 00:20:05]} {[%emt 00:03:19]} 31.
Rc1 {[%clk 00:09:27]} {[%emt 00:10:29]} Rd7 {[%clk 00:17:44]} {[%emt 00:02:51]}
32. Rc6 {[%clk 00:09:50]} {[%emt 00:00:07]} Kf7 {[%clk 00:17:53]} {[%emt
00:00:20]} 33. Re3 {[%clk 00:07:00]} {[%emt 00:03:20]} Re8 {[%clk 00:17:29]}
{[%emt 00:00:54]} 34. Ra6 {[%clk 00:06:48]} {[%emt 00:00:42]} Nb6 {[%clk
00:17:30]} {[%emt 00:00:28]} 35. Bc5 {[%clk 00:05:58]} {[%emt 00:01:20]} Nd5
{[%clk 00:16:19]} {[%emt 00:01:41]} 36. Rb3 {[%clk 00:05:31]} {[%emt 00:00:57]}
f5 {[%clk 00:16:44]} {[%emt 00:00:05]} 37. e3 {[%clk 00:03:01]} {[%emt
00:03:00]} Rdd8 {[%clk 00:17:01]} {[%emt 00:00:14]} 38. f3 {[%clk 00:01:42]}
{[%emt 00:01:49]} Rb8 {[%clk 00:16:48]} {[%emt 00:00:43]} 39. Rxb8 {[%clk
00:01:19]} {[%emt 00:00:53]} Rxb8 {[%clk 00:17:13]} {[%emt 00:00:05]} 40. e4
{[%clk 00:01:09]} {[%emt 00:00:39]} Rb1+ {[%clk 00:16:49]} {[%emt 00:00:54]} 41.
Kf2 {[%clk 00:27:36]} {[%emt 00:04:03]} Rb2+ {[%clk 00:47:09]} {[%emt
00:00:10]} 42. Ke1 {[%clk 00:28:04]} {[%emt 00:00:02]} fxe4 {[%clk 00:46:48]}
{[%emt 00:00:52]} 43. fxe4 {[%clk 00:28:32]} {[%emt 00:00:01]} Nc3 {[%clk
00:46:17]} {[%emt 00:01:00]} 44. e5 {[%clk 00:25:24]} {[%emt 00:03:39]} h5
{[%clk 00:45:45]} {[%emt 00:01:02]} 45. Bb4 {[%clk 00:23:40]} {[%emt 00:02:13]}
Nd5 {[%clk 00:42:37]} {[%emt 00:03:38]} 46. Bd2 {[%clk 00:23:30]} {[%emt
00:00:40]} g4 {[%clk 00:40:23]} {[%emt 00:02:44]} 47. Ke2 {[%clk 00:14:05]}
{[%emt 00:09:56]} Nb6 {[%clk 00:34:19]} {[%emt 00:06:34]} 48. Kd3 {[%clk
00:11:16]} {[%emt 00:03:19]} Ra2 {[%clk 00:33:17]} {[%emt 00:01:32]} 49. Ra7
{[%clk 00:10:14]} {[%emt 00:01:33]} Kg6 {[%clk 00:31:21]} {[%emt 00:02:26]} 50.
d5 {[%clk 00:00:43]} {[%emt 00:10:01]} Nxd5 {[%clk 00:29:33]} {[%emt 00:02:17]}
51. a4 {[%clk 00:01:13]} Kf5 {[%clk 00:27:39]} {[%emt 00:02:24]} 52. a5 {[%clk
00:01:42]} Kxe5 {[%clk 00:27:45]} {[%emt 00:00:25]} 53. Ra8 {[%clk 00:01:48]}
{[%emt 00:00:25]} c5 {[%clk 00:26:49]} {[%emt 00:01:26]} 54. Rc8 {[%clk
00:01:31]} {[%emt 00:00:46]} Kd6 {[%clk 00:25:41]} {[%emt 00:01:37]} 55. Rd8+
{[%clk 00:01:45]} {[%emt 00:00:17]} Kc7 {[%clk 00:25:23]} {[%emt 00:00:48]} 56.
Rh8 {[%clk 00:00:33]} {[%emt 00:01:43]} c4+ {[%clk 00:25:02]} {[%emt 00:00:51]}
57. Kxc4 {[%clk 00:01:01]} {[%emt 00:00:02]} Rxd2 {[%clk 00:25:25]} {[%emt
00:00:06]} 58. Rxh5 {[%clk 00:01:23]} {[%emt 00:00:08]} Kc6 {[%clk 00:23:27]}
{[%emt 00:02:28]} 59. Rh6 {[%clk 00:01:13]} {[%emt 00:00:41]} Kd6 {[%clk
00:21:55]} {[%emt 00:02:01]} 60. Rh5 {[%clk 00:01:26]} {[%emt 00:00:17]} Rc2+
{[%clk 00:21:51]} {[%emt 00:00:34]} 61. Kd3 {[%clk 00:01:08]} {[%emt 00:00:47]}
Ra2 {[%clk 00:21:46]} {[%emt 00:00:36]} 62. Rh4 {[%clk 00:01:32]} {[%emt
00:00:06]} Ra3+ {[%clk 00:20:43]} {[%emt 00:01:34]} 63. Ke2 {[%clk 00:01:42]}
{[%emt 00:00:19]} Nf6 {[%clk 00:19:26]} {[%emt 00:01:47]} 64. Kf2 {[%clk
00:01:14]} {[%emt 00:00:59]} Rxa5 {[%clk 00:19:44]} {[%emt 00:00:12]} 65. h3
{[%clk 00:01:38]} {[%emt 00:00:05]} gxh3 {[%clk 00:19:39]} {[%emt 00:00:35]} 66.
Rxh3 {[%clk 00:02:01]} {[%emt 00:00:07]} Rh5 {[%clk 00:19:59]} {[%emt
00:00:09]} 67. Rh4 {[%clk 00:02:18]} {[%emt 00:00:13]} Rxh4 {[%clk 00:20:11]}
{[%emt 00:00:19]} 68. gxh4 {[%clk 00:02:44]} {[%emt 00:00:04]} Ke5 {[%clk
00:20:36]} {[%emt 00:00:05]} 69. Ke3 {[%clk 00:03:05]} {[%emt 00:00:09]} Kf5
{[%clk 00:21:00]} {[%emt 00:00:06]} 70. Kd4 {[%clk 00:03:32]} {[%emt 00:00:02]}
e5+ {[%clk 00:21:10]} {[%emt 00:00:21]} 0-1